Cogmind - Beta 13 @@@ ROGUE MODE // 2024.04.04 @ 18:59:56 Player: Raspberry Result: Destroyed by S-27 Virus with Autogun Performance ------------- Evolutions (3) 1500 Regions Visited (5) 1000 Robots Destroyed (44) 220 Value Destroyed (1499) 1499 Prototype IDs (2) 40 Alien Tech Used (0) 0 Bonus (0) 0 TOTAL SCORE: 4259 Bonus ------- None Cogmind --------- Core Integrity 0/700 Matter 151/300 Energy 61/100 System Corruption 2% Temperature Cool (0) Movement Core (50) Location -7/Lower Caves Parts ------- > --- POWER (1) -------- (None) > --- PROPULSION (3) --- (None) > --- UTILITY (6) ------ Targeting Computer Melee Analysis Suite Graphene Brace Hacking Suite > --- WEAPON (3) ------- (None) > --- INVENTORY (5) ---- Micro Nuclear Core Peak State ------------ > --- POWER ------------ Micro Nuclear Core > --- PROPULSION ------- Carbon-fiber Leg Carbon-fiber Leg Gravmag System > --- UTILITY ---------- Improved Heat Sink Compact Battery Compact Battery Melee Analysis Suite Graphene Brace Hacking Suite > --- WEAPON ----------- Heavy Ion Cannon Gauss Rifle Flak Gun > --- INVENTORY -------- Micro Nuclear Core Micro Nuclear Core Targeting Computer Mini Grenade Launcher [Rating: 49] Favorites ----------- Power Light Ion Engine Engine Light Ion Engine Power Core Micro Nuclear Core Propulsion Flight Unit Treads Light Treads Leg Carbon-fiber Leg Wheel Wheel Hover Unit Gravmag System Flight Unit Flight Unit Utility Hacking Suite Device Field Recycling Unit Storage Compact Battery Processor Melee Analysis Suite Hackware Hacking Suite Protection Hardened Light Armor Plating Weapon Small Laser Energy Gun Small Laser Energy Cannon Particle Cannon Ballistic Gun Gauss Rifle Launcher Mini Grenade Launcher Special Weapon Remote Datajack Impact Weapon Great Maul Build | -11 -10 -9 -8 -7 -7 ------- Run | Yrd Mat Mat Mat Fac Low Slots Evolved 6 | . . 2 2 2 . Power . | . . . . . . Propulsion 1 | . . . 1 . . Utility 4 | . . 2 1 1 . Weapon 1 | . . . . 1 . Parts Attached 81 | 5 18 18 18 22 . Power 12 | 1 3 2 4 2 . Engine 6 | 1 3 2 . . . Core 6 | . . . 4 2 . Reactor . | . . . . . . Propulsion 20 | 2 4 6 3 5 . Treads 4 | . . 4 . . . Leg 7 | . . 2 2 3 . Wheel 2 | 2 . . . . . Hover 3 | . 1 . . 2 . Flight 4 | . 3 . 1 . . Utility 27 | . 7 6 7 7 . Device 8 | . 2 2 2 2 . Storage 5 | . 2 . . 3 . Processor 9 | . 2 3 2 2 . Hackware 4 | . . 1 3 . . Protection 1 | . 1 . . . . Artifact . | . . . . . . Weapon 22 | 2 4 4 4 8 . Energy Gun 7 | . 3 2 . 2 . Energy Cannon 6 | . 1 2 2 1 . Ballistic Gun 5 | 2 . . . 3 . Ballistic Cannon . | . . . . . . Launcher 2 | . . . 1 1 . Special Weapon 1 | . . . . 1 . Impact Weapon 1 | . . . 1 . . Slashing Weapon . | . . . . . . Piercing Weapon . | . . . . . . Special Melee Weapon . | . . . . . . Unidentified Prototypes 2 | . . 1 . 1 . Parts Lost 26 | . 3 3 6 14 . Power 3 | . . . 1 2 . Propulsion 8 | . 3 1 . 4 . Utility 8 | . . 2 3 3 . Weapon 7 | . . . 2 5 . Highest Loss Streak 9 | . 1 2 4 9 . To Critical Strikes . | . . . . . . Average Slot Usage (%) 79 | . 85 82 84 74 30 Engine 7 | . 13 11 3 . . Core 2 | . . . 4 6 . Treads 3 | . . 12 6 . . Leg 1 | . . . 5 4 . Wheel 1 | . 3 . . . . Flight 5 | . 12 2 4 . . Device 9 | . 11 10 2 9 7 Storage 3 | . . . . 11 . Processor 10 | . 2 16 18 11 15 Hackware 4 | . . 1 21 7 7 Protection 6 | . 10 10 . . . Energy Gun 11 | . 23 4 11 2 . Energy Cannon 5 | . . 13 . 6 . Ballistic Gun 3 | . 3 . . 6 . Naked Turns . | . . . . . . Heaviest Build 29 | 5 18 29 13 26 1 Greatest Support 49 | 20 20 40 49 48 3 Greatest Overweight (x) 7 | . 5 7 3 7 . Average Overweight (x) 1 | . 2 1 . 2 . Largest Inventory Capacity 5 | 5 5 5 5 5 5 Average Capacity 5 | 5 5 5 5 5 5 Most Carried 5 | 4 5 5 5 5 1 Average Carried 3 | 2 4 4 3 3 1 Final Capacity 5 | 5 5 5 5 5 5 Final Carried 5 | 4 4 5 2 1 1 Class Distribution -------------------- 71% | Mutant 15% | Tank 7% | Hacker-Mutant Dominant Class ---------------- Mutant | -10/Materials Mutant | -9/Materials Hacker-Mutant | -8/Materials Tank | -7/Factory Mutant | -7/Lower Caves Resources | -11 -10 -9 -8 -7 -7 ----------- Run | Yrd Mat Mat Mat Fac Low Matter Collected 1351 | 258 379 189 137 388 . Remotely . | . . . . . . Salvage Created 1575 | 43 385 597 150 400 . Parts 82 | 2 20 42 9 9 . Haulers Intercepted . | . . . . . . Recyclers Shooed . | . . . . . . Parts Field Recycled 13 | . 7 6 . . . Retrieved Matter 76 | . 33 43 . . . Parts Self-Destructed . | . . . . . . Prevented . | . . . . . . Kills | -11 -10 -9 -8 -7 -7 ------- Run | Yrd Mat Mat Mat Fac Low Combat Hostiles Destroyed 35 | 1 10 11 4 9 . Guns 17 | 1 8 3 3 2 . Cannons 14 | . 2 7 . 5 . AOE 3 | . . 1 1 1 . Classes Destroyed 10 | 1 2 3 2 2 . Worker 1 | . . 1 . . . Builder 1 | . . . 1 . . Recycler 1 | . . 1 . . . Watcher 6 | . 2 4 . . . Swarmer 5 | . 3 2 . . . Grunt 21 | 1 7 6 3 4 . Sentry 6 | . . 3 . 3 . Hunter 1 | . . . . 1 . Programmer 1 | . . . . 1 . Heavy 1 | . . . 1 . . Best Kill Streak 4 | 1 3 4 2 4 . Combat Bots Only 4 | 1 3 3 2 4 . Max Kills in Single Turn 2 | 1 2 2 1 1 . Gunslinging 1 | . 1 . . . . Exploded 1 | . . 1 1 1 . Melee . | . . . . . . Uniques/NPCs Destroyed . | . . . . . . Combat | -11 -10 -9 -8 -7 -7 -------- Run | Yrd Mat Mat Mat Fac Low Hostile Shots Fired 542 | 3 66 94 29 324 26 Missed 191 | . 24 28 6 121 12 Damage Taken 3982 | 35 459 759 729 1786 214 Core 1239 | 12 112 105 300 511 199 Absorbed by Shields . | . . . . . . Regen/Repaired (Parts) 74 | . 39 . . 35 . Core Remaining (%) 65 | 95 50 73 45 . . Volleys Fired 151 | 4 36 42 24 45 . Largest 3 | 2 2 2 2 3 . Hottest 158 | 40 80 124 110 158 . Shots Fired 292 | 8 73 74 28 109 . Gun 180 | 8 65 12 23 72 . Cannon 104 | . 8 62 1 33 . Launcher 6 | . . . 4 2 . Special 2 | . . . . 2 . Kinetic 105 | 8 34 . . 63 . Thermal 142 | . 39 41 20 42 . Explosive 6 | . . . 4 2 . Electromagnetic 37 | . . 33 4 . . Robot Hit Streak 12 | 2 12 9 8 11 . Robot Miss Streak 7 | 2 7 6 4 6 . Penetration Max 1 | . . . . 1 . Secondary Targets 1 | . 1 . . . . Max Gunslinging Chain 1 | . 1 . . . . Shots Hit Robots 161 | 3 34 41 25 58 . Core Hits 118 | 2 20 26 35 35 . Critical Kills 1 | . . 1 . . . Critical Parts Destroyed . | . . . . . . Critical Strikes 1 | . . 1 . . . Meltdown 1 | . . 1 . . . Melee Attacks . | . . . . . . Impact . | . . . . . . Slashing . | . . . . . . Piercing . | . . . . . . Sneak Attacks . | . . . . . . Combat Hostiles . | . . . . . . Follow-up Attacks . | . . . . . . Damage Inflicted 3051 | 24 389 973 428 1237 . Guns 1603 | 24 350 222 299 708 . Cannons 1156 | . 36 658 21 441 . Explosions 289 | . . 93 108 88 . Melee . | . . . . . . Ramming 3 | . 3 . . . . Kinetic 773 | 24 175 . . 574 . Thermal 1534 | . 211 486 262 575 . Explosive 196 | . . . 108 88 . Electromagnetic 545 | . . 487 58 . . Impact . | . . . . . . Slashing . | . . . . . . Piercing . | . . . . . . Highest Corruption 3 | . 3 . 1 2 2 Average Corruption 1 | . 2 . 1 1 2 Corruption Purged . | . . . . . . Corruption Blocked . | . . . . . . Effects 36 | . 22 . 3 9 2 Message Errors 15 | . 11 . . 3 1 Matter Fused 5 | . 3 . 2 . . Heat Flow Errors 2 | . 1 . . 1 . Energy Discharges 6 | . 3 . . 2 1 Data Loss (minor) 2 | . 2 . . . . Data Loss (major) 3 | . 1 . 1 1 . Misfires 1 | . 1 . . . . Alerts 1 | . . . . 1 . Weapon Failures 1 | . . . . 1 . Overload Shots . | . . . . . . Overflow Damage 43 | . . 16 . 27 . Projectiles 30 | . . 16 . 14 . Explosions 13 | . . . . 13 . Melee . | . . . . . . Knockbacks . | . . . . . . Impact . | . . . . . . Kinetic . | . . . . . . Secondary . | . . . . . . Self-Inflicted Damage 113 | . 1 21 30 61 . Shots 4 | . . 1 1 2 . Rammed 1 | . 1 . . . . Targets Rammed 1 | . 1 . . . . Kicked . | . . . . . . Crushed . | . . . . . . Highest Temperature 474 | 6 140 474 227 277 . Average Temperature 100 | 6 51 139 98 66 . Received Heat Transfer 1101 | 18 126 297 144 516 . Effects 9 | . . 9 . . . Energy Bleed 2 | . . 2 . . . Interference 3 | . . 3 . . . Matter Decay 1 | . . 1 . . . Short Circuit 1 | . . 1 . . . Damage (minor) 2 | . . 2 . . . Siege Activations . | . . . . . . Robots Corrupted . | . . . . . . Combat Hostiles . | . . . . . . Parts Fried 3 | . . 3 . . . Impact Corruptions . | . . . . . . Robots Melted 2 | . . 1 . 1 . Combat Hostiles 1 | . . . . 1 . Parts Melted 5 | . 1 . . 4 . Heat Transferred 2462 | . 474 748 352 888 . Parts Sabotaged . | . . . . . . Parts Stolen . | . . . . . . Parts Stripped . | . . . . . . Power Chain Reactions 2 | . . 2 . . . Alert | -11 -10 -9 -8 -7 -7 ------- Run | Yrd Mat Mat Mat Fac Low Peak Influence 252 | 20 252 219 120 170 . Initial 70 | . 13 . 70 30 . Average 55 | 4 44 91 77 32 . Maximum Alert Level 1 | . 1 1 . . . Low Security (%) 93 | 100 95 82 100 100 . Level 1 6 | . 4 17 . . . Level 2 . | . . . . . . Level 3 . | . . . . . . Level 4 . | . . . . . . Level 5 . | . . . . . . High Security . | . . . . . . Max Security . | . . . . . . Squads Dispatched 14 | . 3 2 2 7 . Investigation 2 | . 2 . . . . Extermination 2 | . . . . 2 . Reinforcement 7 | . 1 2 2 2 . Assault . | . . . . . . Garrison 3 | . . . . 3 . Intercept . | . . . . . . Searches Triggered . | . . . . . . Construction Impeded . | . . . . . . Haulers Reinforced 1 | . . . . 1 . Active Scanning Responses . | . . . . . . Cargo Convoy Interrupts 1 | . . . . 1 . Stealth | -11 -10 -9 -8 -7 -7 --------- Run | Yrd Mat Mat Mat Fac Low Distress Signals 2 | . 1 . . 1 . Communications Jammed . | . . . . . . Distress Signals . | . . . . . . Times Spotted 59 | 1 16 19 5 14 4 Peak Tracking Total 4 | 1 3 3 2 4 4 Tactical Retreats 2 | . 1 1 . . . Traps | -11 -10 -9 -8 -7 -7 ------- Run | Yrd Mat Mat Mat Fac Low Traps Triggered 6 | . 3 . 3 . . Indirectly . | . . . . . . Trap Hack Attempts . | . . . . . . Triggered . | . . . . . . Disarmed . | . . . . . . Reprogrammed . | . . . . . . Reused . | . . . . . . Traps Extracted . | . . . . . . Installed . | . . . . . . Triggered 1 | . . . . 1 . Machines | -11 -10 -9 -8 -7 -7 ---------- Run | Yrd Mat Mat Mat Fac Low Machines Disabled 5 | . . 2 1 2 . Max in Single Turn 1 | . . 1 1 1 . Machines Repaired . | . . . . . . Machines Dismantled . | . . . . . . Machines Sabotaged . | . . . . . . Overloaded Fab Kills . | . . . . . . Hacking | -11 -10 -9 -8 -7 -7 --------- Run | Yrd Mat Mat Mat Fac Low Machines Accessed 10 | . 3 4 1 2 . Terminals 7 | . 2 4 1 . . Fabricators . | . . . . . . Repair Stations 2 | . 1 . . 1 . Recycling Units . | . . . . . . Scanalyzers . | . . . . . . Garrison Access 1 | . . . . 1 . Total Hacks 23 | . 8 9 2 4 . Successful 13 | . 5 5 1 2 . Failed 10 | . 3 4 1 2 . Catastrophic 1 | . . 1 . . . Database Lockouts . | . . . . . . Manual . | . . . . . . Terminals 16 | . 5 9 2 . . Fabricators . | . . . . . . Repair Stations 6 | . 3 . . 3 . Recycling Units . | . . . . . . Scanalyzers . | . . . . . . Garrison Access 1 | . . . . 1 . Terminal Hacks 9 | . 3 5 1 . . Record 7 | . 3 4 . . . Emergency Access Points 1 | . . . 1 . . Alert Level 1 | . . 1 . . . Fabricator Hacks . | . . . . . . Repair Station Hacks 4 | . 2 . . 2 . Scan Component 2 | . 1 . . 1 . Repair 2 | . 1 . . 1 . Recycling Unit Hacks . | . . . . . . Scanalyzer . | . . . . . . Garrison Access Hacks . | . . . . . . Unauthorized Hacks . | . . . . . . Terminals . | . . . . . . Fabricators . | . . . . . . Repair Stations . | . . . . . . Recycling Units . | . . . . . . Scanalyzers . | . . . . . . Garrison Access . | . . . . . . Data Cores Recovered . | . . . . . . Used . | . . . . . . Hacking Detections 5 | . 3 . . 2 . Full Trace Events 2 | . 2 . . . . Feedback Events 1 | . 1 . . . . Corruption 1 | . 1 . . . . Feedback Blocked . | . . . . . . Robot Schematics Acquired . | . . . . . . Robots Built . | . . . . . . Authchips . | . . . . . . Time . | . . . . . . Total Robot Build Rating . | . . . . . . Part Schematics Acquired . | . . . . . . Parts Built . | . . . . . . Authchips . | . . . . . . Time . | . . . . . . Total Part Build Rating . | . . . . . . Parts Repaired 2 | . 1 . . 1 . Time 64 | . 26 . . 38 . Parts Recycled . | . . . . . . Recycled Matter . | . . . . . . Retrieved Matter . | . . . . . . Retrieved Components . | . . . . . . Parts Scanalyzed . | . . . . . . Part Schematics Acquired . | . . . . . . Parts Damaged . | . . . . . . Bothacking | -11 -10 -9 -8 -7 -7 ------------ Run | Yrd Mat Mat Mat Fac Low Used RIF Installer . | . . . . . . Robots Hacked 1 | . . . . 1 . Non-combat . | . . . . . . Combat 1 | . . . . 1 . Robot Hacks Applied 1 | . . . . 1 . parse_system 1 | . . . . 1 . Relay Couplers Released . | . . . . . . Fabnet Peak Effective % . | . . . . . . Robots Rewired . | . . . . . . Allies Hacked . | . . . . . . Hacks Repelled . | . . . . . . Allies | -11 -10 -9 -8 -7 -7 -------- Run | Yrd Mat Mat Mat Fac Low Total Allies . | . . . . . . Largest Group . | . . . . . . Highest-Rated Group . | . . . . . . Highest-Rated Ally . | . . . . . . Total Orders . | . . . . . . Ally Attacks . | . . . . . . Total Damage . | . . . . . . Kills . | . . . . . . Allies Corrupted . | . . . . . . Allies Melted . | . . . . . . Intel | -11 -10 -9 -8 -7 -7 ------- Run | Yrd Mat Mat Mat Fac Low Robot Analysis Total . | . . . . . . Derelict Logs Recovered . | . . . . . . Drone Launches . | . . . . . . Drone Recoveries . | . . . . . . Exploration | -11 -10 -9 -8 -7 -7 ------------- Run | Yrd Mat Mat Mat Fac Low Turns Passed 5491 | 83 1881 1399 479 1489 160 Spaces Moved 2718 | 82 821 570 348 584 313 Core 949 | 21 120 142 22 331 313 Treads 525 | . . 417 108 . . Legs 339 | . . 11 109 219 . Wheels 262 | 61 201 . . . . Hover 93 | . 59 . . 34 . Flight 550 | . 441 . 109 . . Fastest Speed 35 | 50 37 160 35 50 50 Average Speed 177 | 72 209 218 108 217 50 Slowest Speed 400 | 80 360 400 200 400 50 Overloaded Moves . | . . . . . . Propulsion Burnouts . | . . . . . . Robots Hopped . | . . . . . . Cave-ins Triggered . | . . . . . . Exploration Rate (%) 28 | 8 72 30 24 12 24 Regions Visited 5 Branch Regions 1 Pre-discovered Areas . | . . . . . . Known Exits Taken . | . . . . . . Unknown Exits Taken 5 | 1 1 1 1 1 . Scrap Searched . | . . . . . . Spaces Dug 3 | . . . . 3 . Terrain Destroyed 46 | . . 7 25 14 . Melee . | . . . . . . Projectile 5 | . . . . 5 . AOE 41 | . . 7 25 9 . Terrain Rammed . | . . . . . . Walls Destroyed . | . . . . . . Machines Disabled . | . . . . . . Actions | -11 -10 -9 -8 -7 -7 --------- Run | Yrd Mat Mat Mat Fac Low Total 3112 | 99 917 652 420 708 316 Wait 72 | . 15 . 16 38 3 Move 2713 | 81 820 569 347 583 313 Hop . | . . . . . . Pick Up 50 | 9 10 10 10 11 . Fast Attach 27 | . 9 7 4 7 . Attach 30 | 5 4 3 7 11 . Detach 2 | . . . . 2 . Swap 24 | . 5 8 7 4 . Drop 42 | . 17 13 5 7 . Fire 151 | 4 36 42 24 45 . Melee . | . . . . . . Ram 1 | . 1 . . . . Kick . | . . . . . . Crush . | . . . . . . Escape Stasis . | . . . . . . Rewire . | . . . . . . Trap . | . . . . . . Miscellaneous . | . . . . . . Route ------- -11/Scrapyard -10/Materials (discovered 4 exits: *Mat x2 / [*Min x2]) -9/Materials -8/Materials -7/Factory -7/Lower Caves History --------- Turn | Location | Event 2 | -11/Scrapyard | Met Revision 17 54 | -11/Scrapyard | Discovered new exit (range 8) 84 | -11/Scrapyard | Entered Materials 132 | -10/Materials | Discovered new exit (range 16) 224 | -10/Materials | Discovered new exit (range 16) 227 | -10/Materials | Met 8R-AWN 307 | -10/Materials | Build established: Mutant 332 | -10/Materials | Discovered new exit (range 16) 395 | -10/Materials | Repaired Ion Engine? 1549 | -10/Materials | Discovered new exit (range 15) 1965 | -10/Materials | Entered another Materials area 1965 | -9/Materials | Evolved 2 slots: Utility x2 3124 | -9/Materials | Discovered new exit (range 12) 3364 | -9/Materials | Entered another Materials area 3364 | -8/Materials | Evolved 2 slots: Propulsion x1, Utility x1 3676 | -8/Materials | Build established: Hacker-Mutant 3780 | -8/Materials | Discovered new exit (range 6) 3811 | -8/Materials | Core integrity fell below 50% 3827 | -8/Materials | Lost 4 parts (1p2u1w) 3843 | -8/Materials | Entered Factory 3843 | -7/Factory | Evolved 2 slots: Utility x1, Weapon x1 4081 | -7/Factory | Build established: Mutant 4480 | -7/Factory | Build established: Tank 5061 | -7/Factory | Repaired Imp. Heat Sink 5163 | -7/Factory | Cargo convoy interrupted 5322 | -7/Factory | Core integrity fell below 50% 5325 | -7/Factory | Discovered new exit (range 9) 5332 | -7/Factory | Entered Lower Caves 5356 | -7/Lower Caves | Lost 9 parts (1p4n1u3w) 5477 | -7/Lower Caves | Core integrity fell below 20% 5492 | -7/Lower Caves | Destroyed by S-27 Virus with Autogun Last Messages --------------- 05317_ Flak Gun destroyed. 05317_ Gauss Rifle destroyed. 05317_ Carbon-fiber Leg destroyed. 05321_ Imp. Carbon-fiber Leg destroyed. 05321_ Targeting Computer destroyed. 05321_ Gravmag System destroyed. 05324_ Mic. Nuclear Core destroyed. 05325_ Y-54 Guardian destroyed. 05325_ EXIT=FOUND 05325_ Mni. Grenade Launcher destroyed. 05325_ Destroyed Mni. Grenade Launcher. 05325_ U-05 Engineer lays Concrete. 05328_ Acquired 43 matter. 05328_ U-05 Engineer lays Concrete. 05331_ BN9ICOOS0CM%K28DLAPSJ3AHCC:GQQF|Y2U RUA TKVV9D 05492_ System corrupted: Energy discharge (-38). [Achievement: First Step to Greatness] Map ----- +----------------------------------------------------+ | ??????????????????????????????????????????????#### | | ??????????????????????????????????????????????# | | ??????????????????????????????????????????????# | | ??????????????????????????????????????????????# " | | ??????????????????????????????????????????????# | | ??????????????????????????????????????????????# | | ??????????????????????????????????????????????# " | | ??????????????????????????????????????????????# " | | ??????????????????????????????????????????##### | | ?????????????????????????????????????????## ## | | ?????????????????????????????????????????# | | ???????????????????????????????????????#?## | | ?????????????????? ?????????????????? ####### # | | ???????????????? #????????????????? #???# # | | ????????????????? ?????????????????# #?### # | | ????????????????? #????????#####??## #?# # | | ????????????????? ##??????# #### #?## | | ?????????????????? ???????# ##### | | ??????????????????? ???????# ## | | ???????????????????? ???????# | | ????????????????????? ???????# | | ?????????????????????? ##?????# #### | | ??????????????????????? ##????## ##??# | | ???????????????????????# ##????###???### | | ??????????????????????## ##???????????# | | ???????????????# #### @ #??????????## | | ????????????????# #?########## | | ????????????????# ### | | ???????????????# ### ## ###### | | ??????????????# ???## s# #????### | | ??????????????# #?????## s #??????# | | ??????????????# ????????## s##?##??# | | ??????????????# ??????????## ## #??## | | ??????????????#?????????????# #???# | | ????????????????????????????#### #???## ### | | ???????????????????????????????# #????# ##?? | | ??????????????????????????????# #???####??# | | ??????????????????????????????# #??????### | | ??????????????????????????????# ###??????# | | ??????????????????????????????# #????????# | | ??????????????????????????????# #?????????# | | ??????????????????????????????# #?????????## | | ??????????????????????????????# ##??????????# | | ??????????????????????????????# #####???????????# | | ??????????????????????????????###????????????????# | | ?????????????????????????????????????????????????? | | ?????????????????????????????????????????????????? | | ?????????????????????????????????????????????????? | | ?????????????????????????????????????????????????? | | ?????????????????????????????????????????????????? | +----------------------------------------------------+ Best States ------------- Heat Dissipation 48 Energy Generation 15 Energy Capacity 560 Matter Stores 383 Matter Capacity 500 Sight Range 16 Robot Scan Range 14 Terrain Scan Density 10 ECM Strength 1 Additional Mass Support 9 Armor Coverage 150 Evasion (%) 63 Targeting Accuracy 10 Melee Accuracy 10 Recoil Reduction 2 Offensive Hacking 30 Defensive Hacking 10 Item Schematics ----------------- None Robot Schematics ------------------ None Fabricated ------------ Nothing Alien Tech Used ----------------- None Achievements -------------- First Step to Greatness It's Just You Made in Tau Ceti IV Please Form A Line Risk Taker Storm Trooper Uninvited Guest Universal Adapter Challenges ------------ None Game ------ Seed CoilControlSource Manual? 0 Play Time 00:49:17 Cumulative 1.4 hours Start 2024.04.03 @ 20:32:54 End 2024.04.04 @ 18:59:56 Sessions 5 Manual Loads 0 Difficulty Rogue Special Mode None Game No. 2 Rogue 2 Adventurer 0 Explorer 0 Win Type - Total 0 Types 0/0/0/0/0/0/0/0/0 Lore% 1 Gallery% 6 Achievement% 4 Wizard Run 0 Options --------- Layout 2 ASCII 0 Keyboard 0 Movement Mouse Keybinds 0 Fullscreen 2 Font 32/SmallcapsGlow Map View 50x44 Zoom Use 0% Tactical HUD 1 Map Filters NONE Filters NONE Steam 1 RUN: 7aa07b9d-099e-4821-b236-4388094cbe3b